[Event "Slovakia Open 2022"]
[Site "Bratislava"]
[Date "2022.10.01"]
[Round "5.30"]
[White "Slivka, Vasil"]
[Black "Hlavac, Tomas"]
[Result "0-1"]
[ECO "E90"]
[WhiteElo "1569"]
[BlackElo "1554"]
[Annotator "NA RC COMBH"]
[PlyCount "136"]
[EventDate "2022.09.30"]
[EventCountry "SVK"]
[SourceTitle "playchess.com"]
[Source "ChessBase"]
[SourceQuality "1"]
[TimeControl "2700+10"]

1. d4 {[%emt 0:00:04]} Nf6 {[%emt 0:00:02]} 2. c4 {[%emt 0:00:02]} g6 {[%emt 0:00:01]} 3. Nc3 {[%emt 0:00:02]} Bg7 {[%emt 0:00:11]} 4. e4 {[%emt 0:00:03]} d6 {[%emt 0:00:00]} 5. Nf3 {[%emt 0:00:07]} O-O {[%emt 0:00:00]} 6. g3 {[%emt 0:00:07]} Bg4 {[%emt 0:00:33]} 7. Bg2 {[%emt 0:00:04]} Nbd7 {[%emt 0:00:14]} 8. O-O {[%emt 0:00:05]} c5 {[%emt 0:00:17]} 9. Be3 {[%emt 0:00:48]} a6 {[%emt 0:05:28]} 10. Rc1 {[%emt 0:01:11]} Rb8 {[%emt 0:00:14]} 11. Qd2 {[%emt 0:00:18]} b5 {[%emt 0:01:05]} 12. cxb5 {[%emt 0:00:26]} axb5 {[%emt 0:00:03]} 13. a3 {[%emt 0:00:57]} b4 {[%emt 0:00:30]} 14. axb4 {[%emt 0:00:12]} cxb4 {[%emt 0:00:03]} 15. Ne2 {[%emt 0:00:32]} Nxe4 {[%emt 0:00:05]} 16. Qd3 {[%emt 0:00:43]} Bf5 {[%emt 0:01:10]} 17. Qd1 {[%emt 0:01:08]} Ndf6 {[%emt 0:05:29]} 18. Nh4 {[%emt 0:02:00]} d5 {[%emt 0:06:24]} 19. Nxf5 {[%emt 0:00:45]} gxf5 {[%emt 0:00:00]} 20. f3 {[%emt 0:00:45]} Nd6 {[%emt 0:00:08]} 21. b3 {[%emt 0:00:33]} Nb5 {[%emt 0:00:19]} 22. Qd2 {[%emt 0:01:14]} Na3 {[%emt 0:01:04]} 23. Bh6 {[%emt 0:00:39]} Bxh6 {[%emt 0:02:20]} 24. Qxh6 {[%emt 0:00:02]} Kh8 {[%emt 0:00:10]} 25. Rc6 {[%emt 0:01:21]} Rg8 {[%emt 0:03:12]} 26. Nf4 {[%emt 0:01:29]} Qf8 {[%emt 0:01:17]} 27. Qxf8 {[%emt 0:00:48]} Rgxf8 {[%emt 0:00:10]} 28. Rfc1 {[%emt 0:00:28]} Nb5 {[%emt 0:00:19]} 29. Ne2 {[%emt 0:00:59]} Nd6 {[%emt 0:00:42]} 30. h3 {[%emt 0:01:11]} Rfc8 {[%emt 0:00:11]} 31. Rxc8+ {[%emt 0:00:06]} Rxc8 {[%emt 0:00:02]} 32. Rxc8+ {[%emt 0:00:02]} Nxc8 {[%emt 0:01:35]} 33. Nf4 {[%emt 0:00:10]} Nd6 {[%emt 0:00:10]} 34. Nd3 {[%emt 0:00:10]} Nb5 {[%emt 0:00:15]} 35. Nxb4 {[%emt 0:00:22]} Nxd4 {[%emt 0:00:03]} 36. f4 {[%emt 0:00:08]} e6 {[%emt 0:00:02]} 37. Nd3 {[%emt 0:00:26]} Nxb3 {[%emt 0:00:05]} 38. Ne5 {[%emt 0:00:01]} Kg7 {[%emt 0:00:07]} 39. Kf2 {[%emt 0:01:05]} Ne4+ {[%emt 0:01:08]} 40. Bxe4 {[%emt 0:00:14]} fxe4 {[%emt 0:00:03]} 41. Ke3 {[%emt 0:00:43]} f5 {[%emt 0:00:33]} 42. g4 {[%emt 0:00:09]} d4+ {[%emt 0:00:13]} 43. Ke2 {[%emt 0:00:04]} d3+ {[%emt 0:02:27]} 44. Nxd3 {[%emt 0:00:19]} exd3+ {[%emt 0:00:02]} 45. Kxd3 {[%emt 0:00:01]} fxg4 {[%emt 0:00:06]} 46. hxg4 {[%emt 0:00:39]} Kf6 {[%emt 0:00:10]} 47. Ke4 {[%emt 0:00:10]} Nc5+ {[%emt 0:00:35]} 48. Kd4 {[%emt 0:00:09]} Nd7 {[%emt 0:00:09]} 49. Ke4 {[%emt 0:00:03]} Nf8 {[%emt 0:00:23]} 50. g5+ {[%emt 0:00:27]} Kf7 {[%emt 0:00:37]} 51. f5 {[%emt 0:00:02]} exf5+ {[%emt 0:00:25]} 52. Kxf5 {[%emt 0:00:02]} Ne6 {[%emt 0:00:22]} 53. Kg4 {[%emt 0:00:09]} Kg6 {[%emt 0:00:02]} 54. Kh4 {[%emt 0:00:03]} Nxg5 {[%emt 0:00:04]} 55. Kg4 {[%emt 0:00:02]} Ne6 {[%emt 0:00:48]} 56. Kh4 {[%emt 0:00:02]} h5 {[%emt 0:00:30]} 57. Kg3 {[%emt 0:00:05]} Kg5 {[%emt 0:00:03]} 58. Kh3 {[%emt 0:00:02]} Kf4 {[%emt 0:02:50]} 59. Kh4 {[%emt 0:00:06]} Ng7 {[%emt 0:00:03]} 60. Kh3 {[%emt 0:00:01]} Kg5 {[%emt 0:00:48]} 61. Kg3 {[%emt 0:00:03]} h4+ {[%emt 0:00:07]} 62. Kh3 {[%emt 0:00:02]} Nf5 {[%emt 0:00:03]} 63. Kg2 {[%emt 0:00:04]} Kg4 {[%emt 0:00:06]} 64. Kh2 {[%emt 0:00:01]} Ne3 {[%emt 0:00:41]} 65. Kh1 {[%emt 0:00:05]} Kg3 {[%emt 0:02:57]} 66. Kg1 {[%emt 0:00:27]} Ng4 {[%emt 0:00:10]} 67. Kh1 {[%emt 0:00:10]} h3 {[%emt 0:00:15]} 68. Kg1 {[%emt 0:00:03]} h2+ {[%emt 0:00:06]} 0-1

[Event "Slovakia Open 2022"]
[Site "Bratislava"]
[Date "2022.10.01"]
[Round "5.31"]
[White "Dubnicka, Ferdinand"]
[Black "Merva Max"]
[Result "1-0"]
[ECO "C47"]
[WhiteElo "1494"]
[BlackElo "1000"]
[Annotator "NA RC COMBH"]
[PlyCount "45"]
[EventDate "2022.09.30"]
[EventCountry "SVK"]
[SourceTitle "playchess.com"]
[Source "ChessBase"]
[SourceQuality "1"]
[TimeControl "2700+10"]

1. e4 {[%emt 0:00:09]} e5 {[%emt 0:00:35]} 2. Nf3 {[%emt 0:00:06]} Nc6 {[%emt 0:00:16]} 3. Nc3 {[%emt 0:00:04]} Nf6 {[%emt 0:00:54]} 4. h3 {[%emt 0:00:05]} Bb4 {[%emt 0:00:43]} 5. d3 {[%emt 0:00:08]} d6 {[%emt 0:00:26]} 6. Bg5 {[%emt 0:00:06]} O-O {[%emt 0:00:39]} 7. Be2 {[%emt 0:00:07]} Be6 {[%emt 0:00:39]} 8. O-O {[%emt 0:00:10]} Nd4 {[%emt 0:00:48]} 9. Nxd4 {[%emt 0:00:00]} exd4 {[%emt 0:02:58]} 10. Nd5 {[%emt 0:00:09]} Bxd5 {[%emt 0:00:10]} 11. exd5 {[%emt 0:00:03]} c6 {[%emt 0:00:48]} 12. a3 {[%emt 0:00:06]} Ba5 {[%emt 0:00:31]} 13. b4 {[%emt 0:00:02]} Bb6 {[%emt 0:00:36]} 14. Bf3 {[%emt 0:00:15]} Qe7 {[%emt 0:00:50]} 15. Re1 {[%emt 0:00:04]} Qd7 {[%emt 0:00:37]} 16. Bxf6 {[%emt 0:00:07]} gxf6 {[%emt 0:00:49]} 17. Qd2 {[%emt 0:00:11]} c5 {[%emt 0:01:13]} 18. Qh6 {[%emt 0:00:08]} Qf5 {[%emt 0:00:59]} 19. Be4 {[%emt 0:00:09]} Qg6 {[%emt 0:00:35]} 20. Bxg6 {[%emt 0:00:05]} fxg6 {[%emt 0:00:47]} 21. Re4 {[%emt 0:00:08]} Rae8 {[%emt 0:00:44]} 22. Rae1 {[%emt 0:00:11]} Kf7 {[%emt 0:01:17]} 23. Qxh7# {[%emt 0:00:11]} 1-0

[Event "Slovakia Open 2022"]
[Site "Bratislava"]
[Date "2022.10.01"]
[Round "5.32"]
[White "Malaschitz, Teodor"]
[Black "Nikpour Aryabod"]
[Result "1-0"]
[ECO "B12"]
[WhiteElo "1448"]
[BlackElo "1000"]
[Annotator "NA RC COMBH"]
[PlyCount "99"]
[EventDate "2022.09.30"]
[EventCountry "SVK"]
[SourceTitle "playchess.com"]
[Source "ChessBase"]
[SourceQuality "1"]
[TimeControl "2700+10"]

1. e4 {[%emt 0:00:04]} c6 {[%emt 0:00:01]} 2. d4 {[%emt 0:00:02]} d5 {[%emt 0:00:00]} 3. e5 {[%emt 0:00:01]} Bf5 {[%emt 0:00:03]} 4. h4 {[%emt 0:00:01]} h5 {[%emt 0:00:02]} 5. Bd3 {[%emt 0:00:03]} Bxd3 {[%emt 0:00:02]} 6. Qxd3 {[%emt 0:00:01]} e6 {[%emt 0:00:02]} 7. Nf3 {[%emt 0:00:02]} c5 {[%emt 0:00:02]} 8. c3 {[%emt 0:00:02]} Nc6 {[%emt 0:00:01]} 9. Ng5 {[%emt 0:00:18]} cxd4 {[%emt 0:00:15]} 10. cxd4 {[%emt 0:00:03]} Be7 {[%emt 0:00:11]} 11. Nf3 {[%emt 0:00:04]} Qb6 {[%emt 0:00:17]} 12. Nc3 {[%emt 0:00:07]} Bb4 {[%emt 0:00:41]} 13. Bd2 {[%emt 0:00:13]} Nge7 {[%emt 0:00:04]} 14. a3 {[%emt 0:00:01]} Bxc3 {[%emt 0:00:06]} 15. Bxc3 {[%emt 0:00:02]} Nf5 {[%emt 0:00:03]} 16. O-O {[%emt 0:00:22]} Na5 {[%emt 0:00:17]} 17. Rad1 {[%emt 0:00:33]} Nc4 {[%emt 0:00:07]} 18. Nd2 {[%emt 0:00:07]} Nxd2 {[%emt 0:01:10]} 19. Qxd2 {[%emt 0:00:09]} Nxh4 {[%emt 0:00:25]} 20. Bb4 {[%emt 0:00:12]} O-O-O {[%emt 0:00:18]} 21. Rc1+ {[%emt 0:00:35]} Kd7 {[%emt 0:00:17]} 22. Ba5 {[%emt 0:00:02]} Qa6 {[%emt 0:00:10]} 23. Bxd8 {[%emt 0:00:17]} Rxd8 {[%emt 0:00:02]} 24. Qc3 {[%emt 0:00:10]} Qb6 {[%emt 0:00:07]} 25. Rc2 {[%emt 0:00:07]} Qc6 {[%emt 0:00:21]} 26. Qxc6+ {[%emt 0:00:17]} bxc6 {[%emt 0:00:02]} 27. Rfc1 {[%emt 0:00:02]} Rc8 {[%emt 0:00:04]} 28. Kf1 {[%emt 0:00:13]} Nf5 {[%emt 0:03:40]} 29. Rd2 {[%emt 0:00:12]} g5 {[%emt 0:02:37]} 30. Rc3 {[%emt 0:00:15]} g4 {[%emt 0:03:11]} 31. Ke2 {[%emt 0:00:45]} h4 {[%emt 0:02:01]} 32. Rb3 {[%emt 0:00:34]} Rc7 {[%emt 0:02:33]} 33. Rb8 {[%emt 0:00:46]} g3 {[%emt 0:05:11]} 34. b4 {[%emt 0:00:40]} gxf2 {[%emt 0:03:19]} 35. Kxf2 {[%emt 0:00:03]} Ng3 {[%emt 0:00:31]} 36. Kf3 {[%emt 0:01:14]} Nf5 {[%emt 0:01:17]} 37. Kg4 {[%emt 0:02:31]} Ke7 {[%emt 0:01:00]} 38. Kg5 {[%emt 0:00:57]} Rd7 {[%emt 0:03:24]} 39. a4 {[%emt 0:01:29]} Rd8 {[%emt 0:01:01]} 40. Rxd8 {[%emt 0:00:49]} Kxd8 {[%emt 0:00:18]} 41. Kf6 {[%emt 0:00:01]} Ke8 {[%emt 0:00:16]} 42. b5 {[%emt 0:00:07]} Ng3 {[%emt 0:00:05]} 43. Ra2 {[%emt 0:00:43]} Kf8 {[%emt 0:00:10]} 44. Kg5 {[%emt 0:00:04]} Nf5 {[%emt 0:00:13]} 45. a5 {[%emt 0:00:00]} Nxd4 {[%emt 0:00:21]} 46. b6 {[%emt 0:00:08]} axb6 {[%emt 0:00:10]} 47. axb6 {[%emt 0:00:10]} c5 {[%emt 0:00:10]} 48. Ra7 {[%emt 0:00:10]} Kg8 {[%emt 0:00:06]} 49. Kf6 {[%emt 0:00:14]} Kh7 {[%emt 0:00:02]} 50. b7 {[%emt 0:00:04]} 1-0

[Event "Slovakia Open 2022"]
[Site "Bratislava"]
[Date "2022.10.01"]
[Round "5.33"]
[White "Hryshko Herman"]
[Black "Kostic, Ivan"]
[Result "1-0"]
[ECO "D26"]
[WhiteElo "1000"]
[BlackElo "1716"]
[Annotator "NA RC COMBH"]
[PlyCount "101"]
[EventDate "2022.09.30"]
[EventCountry "SVK"]
[SourceTitle "playchess.com"]
[Source "ChessBase"]
[SourceQuality "1"]
[TimeControl "2700+10"]

1. d4 {[%emt 0:00:05]} d5 {[%emt 0:00:10]} 2. c4 {[%emt 0:00:10]} dxc4 {[%emt 0:00:03]} 3. e3 {[%emt 0:00:03]} a6 {[%emt 0:00:46]} 4. Bxc4 {[%emt 0:00:04]} e6 {[%emt 0:00:03]} 5. Nc3 {[%emt 0:00:22]} Nf6 {[%emt 0:00:36]} 6. Nf3 {[%emt 0:00:09]} b5 {[%emt 0:00:12]} 7. Bd3 {[%emt 0:00:11]} Bb7 {[%emt 0:00:38]} 8. O-O {[%emt 0:00:07]} Be7 {[%emt 0:01:20]} 9. Re1 {[%emt 0:00:46]} O-O {[%emt 0:00:14]} 10. e4 {[%emt 0:00:03]} c5 {[%emt 0:01:37]} 11. e5 {[%emt 0:00:19]} Nd5 {[%emt 0:02:52]} 12. Nxd5 {[%emt 0:00:19]} Bxd5 {[%emt 0:00:28]} 13. Be4 {[%emt 0:00:23]} cxd4 {[%emt 0:04:16]} 14. Nxd4 {[%emt 0:02:32]} Bxe4 {[%emt 0:04:25]} 15. Rxe4 {[%emt 0:01:21]} Qd5 {[%emt 0:00:31]} 16. Qe2 {[%emt 0:00:39]} Rd8 {[%emt 0:09:34]} 17. Rg4 {[%emt 0:00:18]} Bf8 {[%emt 0:01:35]} 18. Bg5 {[%emt 0:01:11]} Rd7 {[%emt 0:01:17]} 19. b3 {[%emt 0:00:40]} Rc7 {[%emt 0:02:00]} 20. Qd2 {[%emt 0:02:43]} Nd7 {[%emt 0:02:27]} 21. f4 {[%emt 0:01:29]} g6 {[%emt 0:04:54]} 22. h4 {[%emt 0:00:04]} h5 {[%emt 0:02:15]} 23. Rg3 {[%emt 0:01:00]} Bc5 {[%emt 0:00:09]} 24. Rd1 {[%emt 0:00:04]} Nf8 {[%emt 0:01:11]} 25. Bf6 {[%emt 0:01:49]} Rd7 {[%emt 0:01:13]} 26. Rd3 {[%emt 0:00:30]} Bxd4+ {[%emt 0:00:48]} 27. Rxd4 {[%emt 0:05:27]} Qc5 {[%emt 0:00:05]} 28. Kh2 {[%emt 0:00:03]} Rxd4 {[%emt 0:00:13]} 29. Qxd4 {[%emt 0:00:02]} Qxd4 {[%emt 0:00:03]} 30. Rxd4 {[%emt 0:00:09]} Nh7 {[%emt 0:00:01]} 31. Be7 {[%emt 0:02:05]} Kg7 {[%emt 0:00:08]} 32. Rd6 {[%emt 0:00:06]} a5 {[%emt 0:00:33]} 33. Rb6 {[%emt 0:01:11]} b4 {[%emt 0:00:22]} 34. Kg3 {[%emt 0:00:51]} Nf8 {[%emt 0:00:08]} 35. Rb7 {[%emt 0:01:26]} Kg8 {[%emt 0:00:18]} 36. Kf3 {[%emt 0:01:10]} Kg7 {[%emt 0:00:10]} 37. Ke3 {[%emt 0:01:04]} a4 {[%emt 0:00:19]} 38. Bxf8+ {[%emt 0:04:42]} Kxf8 {[%emt 0:00:21]} 39. Rxb4 {[%emt 0:00:03]} axb3 {[%emt 0:00:06]} 40. axb3 {[%emt 0:00:02]} Ke7 {[%emt 0:00:04]} 41. Rb7+ {[%emt 0:00:22]} Ke8 {[%emt 0:00:15]} 42. b4 {[%emt 0:00:03]} Rd8 {[%emt 0:00:13]} 43. b5 {[%emt 0:00:21]} Rd7 {[%emt 0:00:09]} 44. Rb8+ {[%emt 0:00:13]} Ke7 {[%emt 0:00:09]} 45. b6 {[%emt 0:00:01]} Rd8 {[%emt 0:00:11]} 46. Rb7+ {[%emt 0:00:29]} Ke8 {[%emt 0:00:05]} 47. Rc7 {[%emt 0:00:01]} Rb8 {[%emt 0:00:19]} 48. b7 {[%emt 0:00:06]} Kd8 {[%emt 0:00:25]} 49. Rxf7 {[%emt 0:00:26]} Ke8 {[%emt 0:00:02]} 50. Rh7 {[%emt 0:00:07]} Kd8 {[%emt 0:00:05]} 51. Kd4 {[%emt 0:00:03]} 1-0

[Event "Slovakia Open 2022"]
[Site "Bratislava"]
[Date "2022.10.01"]
[Round "5.34"]
[White "Ruderfer, Mark B"]
[Black "Romanova, Ela"]
[Result "0-1"]
[ECO "B23"]
[WhiteElo "2236"]
[BlackElo "1580"]
[Annotator "TA"]
[PlyCount "68"]
[EventDate "2022.09.30"]
[EventCountry "SVK"]
[SourceTitle "playchess.com"]
[Source "ChessBase"]
[SourceQuality "1"]
[TimeControl "2700+10"]

{[%evp 12,68,26,20,52,11,38,-33,9,-35,59,-7,70,24,64,28,0,-72,-70,-55,-45,-43,-54,-123,-96,-101,-85,-165,-149,-260,-254,-285,-231,-404,-378,-390,-406,-404,-393,-395,-375,-454,-462,-481,-386,-371,-301,-552,-440,-465,-466,-610,-592,-1220,-1181,-29994,-29995,-29997,-29998]} 1. e4 {[%emt 0:00:06]} c5 {[%emt 0:00:02]} 2. Nc3 {[%emt 0:00:11]} Nc6 {[%emt 0:00:02]} 3. Bb5 {[%emt 0:00:04]} g6 {[%emt 0:00:10]} 4. Bxc6 {[%emt 0:00:06]} bxc6 {[%emt 0:00:01]} 5. d3 {[%emt 0:00:05]} Bg7 {[%emt 0:00:03]} 6. f4 {[%emt 0:00:38]} d6 {[%emt 0:01:38]} 7. Nf3 {[%emt 0:00:03]} f5 {[%emt 0:00:38] B23: Closed Sicilian: Lines without g3.} 8. O-O {[%emt 0:01:33]} Nf6 {[%emt 0:00:09] [#]} 9. Bd2 $146 {[%emt 0:01:34]} (9. e5 $14 Nd5 10. Qd2) ({Predecessor:} 9. Kh1 O-O 10. e5 Nd5 11. Qe2 h6 12. Bd2 Rb8 13. b3 Kh7 14. Rae1 Nc7 15. Na4 {0-1 (34) Najer,E (2608)-Chuprov,D (2465) chessassistantclub.com INT 2004}) 9... O-O {[%emt 0:00:10] Black is slightly better.} 10. b3 {[%emt 0:01:38]} Qb6 {[%emt 0:03:17]} (10... fxe4 $15 11. dxe4 Rb8) 11. Kh1 {[%emt 0:01:08]} (11. Na4 $14 Qc7 12. e5) 11... Qc7 {[%emt 0:05:47]} (11... fxe4 $11 12. dxe4 a5) 12. Qe2 {[%emt 0:01:35]} ({White should try} 12. e5 $14) 12... a5 {[%emt 0:01:45]} 13. Rae1 {[%emt 0:01:12]} (13. e5 $5 {[%cal Re5f6]} Nd5 14. Na4 $14) 13... fxe4 {[%emt 0:06:24]} 14. dxe4 {[%emt 0:01:02]} (14. Nxe4 $11 Nd5 15. Neg5) 14... Ba6 $36 {[%emt 0:00:50][%mdl 2048] White is under pressure.} 15. Qf2 {[%emt 0:01:19]} Bxf1 {[%emt 0:00:30]} (15... Ng4 {is interesting.} 16. Qh4 Bxf1 17. Ng5 Bxg2+ 18. Kxg2 Nf6) 16. Qxf1 {[%emt 0:00:13]} e6 {[%emt 0:13:44]} 17. Nd1 {[%emt 0:04:28] White is now going downhill.} (17. Qc4 $15) 17... Rae8 {[%emt 0:04:13]} 18. Nf2 {[%emt 0:01:37]} Nd7 {[%emt 0:01:17][%cal Oa5a4] Against e5} 19. Nd3 {[%emt 0:06:46]} (19. a4 $17 {was called for.}) 19... e5 $19 {[%emt 0:00:27]} 20. Qf2 {[%emt 0:01:24]} (20. fxe5 $17 Bxe5 21. a4) 20... exf4 {[%emt 0:02:21]} 21. Bxf4 {[%emt 0:00:22]} Nf6 {[%emt 0:00:20][%cal Bd7f6,Bf6h5,Bh5f4][%mdl 32]} 22. Nd2 $2 {[%emt 0:04:18]} (22. e5 Ng4 23. Qg3 Nxe5 24. Bxe5 Bxe5 25. Nfxe5 dxe5 26. Nxc5) 22... Nh5 {[%emt 0:01:10]} 23. g3 {[%emt 0:00:36]} g5 {[%emt 0:00:28]} 24. Qe2 {[%emt 0:00:46]} Nxf4 {[%emt 0:00:19]} 25. gxf4 {[%emt 0:00:05]} gxf4 {[%emt 0:00:13]} 26. Qf3 {[%emt 0:00:37]} Kh8 {[%emt 0:01:49]} 27. Rf1 {[%emt 0:01:42]} Be5 {[%emt 0:00:27]} 28. Nc4 {[%emt 0:01:33]} Re7 {[%emt 0:00:23]} 29. Rg1 $2 {[%emt 0:01:35]} (29. Qh3 {was the only defense.}) 29... Rg7 {[%emt 0:00:09] [#] aiming for ...Rfg8.} 30. Rf1 {[%emt 0:03:00]} Rfg8 {[%emt 0:00:36] Hoping for ...Bd4.} 31. Ncxe5 {[%emt 0:04:22]} dxe5 {[%emt 0:00:03]} 32. c4 {[%emt 0:00:57]} Qd6 {[%emt 0:00:22] ( -> ...Qg6)} 33. Qh3 {[%emt 0:00:58]} Qd4 {[%emt 0:00:09]} 34. Nf2 {[%emt 0:00:28] [#]} Qxf2 $3 {[%emt 0:00:05][%mdl 512] Weighted Error Value: White=0.88/Black=0.31} 0-1

[Event "Slovakia Open 2022"]
[Site "Bratislava"]
[Date "2022.10.01"]
[Round "5.35"]
[White "Nosal, Tobias"]
[Black "Rehacek, Oldrich"]
[Result "1-0"]
[ECO "E32"]
[WhiteElo "1601"]
[BlackElo "1366"]
[Annotator "NA RC COMBH"]
[PlyCount "43"]
[EventDate "2022.09.30"]
[EventCountry "SVK"]
[SourceTitle "playchess.com"]
[Source "ChessBase"]
[SourceQuality "1"]
[TimeControl "2700+10"]

1. d4 {[%emt 0:00:06]} b6 {[%emt 0:00:01]} 2. c4 {[%emt 0:00:05]} Bb7 {[%emt 0:00:02]} 3. Nc3 {[%emt 0:00:04]} e6 {[%emt 0:00:01]} 4. e4 {[%emt 0:00:40]} Bb4 {[%emt 0:00:03]} 5. Qc2 {[%emt 0:00:52]} Nf6 {[%emt 0:00:08]} 6. Bd3 {[%emt 0:00:24]} d5 {[%emt 0:01:14]} 7. cxd5 {[%emt 0:00:57]} exd5 {[%emt 0:00:17]} 8. e5 {[%emt 0:02:47]} Ne4 {[%emt 0:00:08]} 9. Nge2 {[%emt 0:03:48]} c5 {[%emt 0:03:09]} 10. O-O {[%emt 0:03:27]} Bxc3 {[%emt 0:01:36]} 11. Nxc3 {[%emt 0:00:56]} Nxc3 {[%emt 0:01:30]} 12. bxc3 {[%emt 0:00:06]} c4 {[%emt 0:00:41]} 13. Bf5 {[%emt 0:01:24]} Bc8 {[%emt 0:00:17]} 14. Ba3 {[%emt 0:02:18]} Nc6 {[%emt 0:02:02]} 15. Rfe1 {[%emt 0:02:59]} Ne7 {[%emt 0:01:41]} 16. e6 {[%emt 0:02:05]} Nxf5 {[%emt 0:03:27]} 17. Qxf5 {[%emt 0:00:24]} f6 {[%emt 0:07:37]} 18. Qh5+ {[%emt 0:01:16]} g6 {[%emt 0:00:15]} 19. Qh6 {[%emt 0:00:18]} Qc7 {[%emt 0:00:57]} 20. e7 {[%emt 0:00:33]} Kd7 {[%emt 0:08:51]} 21. e8=Q+ {[%emt 0:02:17]} Rxe8 {[%emt 0:01:45]} 22. Qxh7+ {[%emt 0:00:46]} 1-0

[Event "Slovakia Open 2022"]
[Site "Bratislava"]
[Date "2022.10.01"]
[Round "5.36"]
[White "Nedoba, Jakub"]
[Black "Kluckova, Alzbeta"]
[Result "1/2-1/2"]
[ECO "D00"]
[WhiteElo "1160"]
[BlackElo "1097"]
[Annotator "NA COMBH"]
[PlyCount "60"]
[EventDate "2022.09.30"]
[EventCountry "SVK"]
[SourceTitle "playchess.com"]
[Source "ChessBase"]
[SourceQuality "1"]
[TimeControl "2700+10"]

1. d4 {[%emt 0:04:24]} d5 {[%emt 0:00:02]} 2. Bf4 {[%emt 0:00:02]} Nc6 {[%emt 0:00:50]} 3. e3 {[%emt 0:00:05]} e6 {[%emt 0:00:26]} 4. Nd2 {[%emt 0:00:10]} Bd6 {[%emt 0:00:14]} 5. Bg3 {[%emt 0:00:02]} Nge7 {[%emt 0:00:06]} 6. c3 {[%emt 0:00:16]} O-O {[%emt 0:00:10]} 7. Bd3 {[%emt 0:00:05]} e5 {[%emt 0:00:05]} 8. dxe5 {[%emt 0:00:18]} Bxe5 {[%emt 0:00:13]} 9. Ngf3 {[%emt 0:00:21]} Bxg3 {[%emt 0:00:17]} 10. hxg3 {[%emt 0:00:03]} Bf5 {[%emt 0:00:06]} 11. Qb1 {[%emt 0:00:19]} Bxd3 {[%emt 0:00:11]} 12. Qxd3 {[%emt 0:00:04]} h6 {[%emt 0:00:38]} 13. O-O-O {[%emt 0:00:44]} Qd6 {[%emt 0:00:16]} 14. Ng5 {[%emt 0:01:31]} f5 {[%emt 0:00:37]} 15. Ngf3 {[%emt 0:00:30]} Ne5 {[%emt 0:00:18]} 16. Nxe5 {[%emt 0:00:28]} Qxe5 {[%emt 0:00:19]} 17. Nf3 {[%emt 0:00:25]} Qe4 {[%emt 0:02:58]} 18. Kc2 {[%emt 0:01:27]} Qxd3+ {[%emt 0:01:13]} 19. Kxd3 {[%emt 0:00:20]} c6 {[%emt 0:01:23]} 20. Rh3 {[%emt 0:02:19]} Rf6 {[%emt 0:01:29]} 21. Rdh1 {[%emt 0:02:21]} Ng6 {[%emt 0:00:43]} 22. b3 {[%emt 0:03:31]} Re8 {[%emt 0:00:04]} 23. Nh4 {[%emt 0:02:35]} Nxh4 {[%emt 0:03:37]} 24. Rxh4 {[%emt 0:00:03]} Re4 {[%emt 0:02:29]} 25. R4h2 {[%emt 0:01:58]} Rfe6 {[%emt 0:01:21]} 26. Re1 {[%emt 0:00:13]} Re7 {[%emt 0:00:48]} 27. Rh5 {[%emt 0:02:24]} Rf7 {[%emt 0:00:20]} 28. f3 {[%emt 0:01:04]} Re6 {[%emt 0:01:12]} 29. Rh4 {[%emt 0:00:19]} Rg6 {[%emt 0:02:40]} 30. Rh3 {[%emt 0:01:23]} Re7 {[%emt 0:00:56]} 1/2-1/2